fUST/lending_fUST_20240709
["ID","MTS","AMOUNT","RATE_DAILY","PERIOD"]
[331543310,1720475447119,-107.89563078,0.00027397,2]
[331544091,1720476215963,2992.59418085,0.00014999,2]
[331544092,1720476219185,156.69712859,0.00015001,2]
[331544093,1720476274318,16246.19933245,0.00015001,2]
[331544094,1720476274683,403.53550106,0.00015001,2]
[331544095,1720476275396,188.35179762,0.00015001,2]
[331544099,1720476309810,154.88383712,0.00015001,2]
[331544100,1720476315593,100000.0,0.00014998,2]
[331544101,1720476319582,2102.46766351,0.00015001,2]
[331544102,1720476326264,154.66746495,0.00015001,2]
[331544103,1720476330588,2102.46766351,0.00015001,2]
[331544104,1720476331146,3886.12450482,0.00015001,2]
[331544105,1720476346905,181.8878663,0.00015001,2]
[331544106,1720476347498,155.29816351,0.00015001,2]
[331544107,1720476351790,213.03490535,0.00015001,2]
[331544108,1720476374247,16246.19933245,0.00015001,2]
[331544110,1720476376403,188.35179762,0.00015001,2]
[331544111,1720476424268,230.27476705,0.00015001,2]
[331544112,1720476443604,2102.46766351,0.00015001,2]
[331544113,1720476451009,213.03490535,0.00015001,2]
[331544114,1720476458260,16246.19933245,0.00015001,2]
[331544116,1720476479011,492.59913672,0.00014999,2]
[331544117,1720476480740,213.03490535,0.00015001,2]
[331544118,1720476491219,515.37464779,0.00014999,2]
[331544119,1720476501417,238.49405591,0.00015001,2]
[331544121,1720476509048,492.59913672,0.00014999,2]
[331544124,1720476519104,156.69712859,0.00015001,2]
[331544125,1720476523140,155.24801441,0.00014999,2]
[331544127,1720476550869,14998.4952491,0.00015001,2]
[331544128,1720476556093,1299.2448502,0.00014999,2]
[331544130,1720476600261,213.03490535,0.00014999,2]
[331544134,1720476632457,-154.83742071,0.00016255,2]
[331544135,1720476632467,-2837.75676014,0.00018899,2]
[331544186,1720476638390,-3387.01588572,0.00018899,2]
[331544187,1720476638408,-4358.78705721,0.00018899,2]
[331544188,1720476638424,-2325.93897219,0.000189,2]
[331544189,1720476638438,-197.26562919,0.00019039,2]
[331544190,1720476638453,-161.577342,0.00019535,2]
[331544191,1720476638467,-250.0,0.00019913,2]
[331544192,1720476638482,-300.0,0.00019999,2]
[331544193,1720476638496,-287.0,0.00019999,2]
[331544194,1720476638511,-5597.34868202,0.0002,2]
[331544195,1720476638525,-170.77187555,0.0002,2]
[331544196,1720476638540,-155.0246491,0.0002,2]
[331544197,1720476638554,-435.0,0.0002,2]
[331544198,1720476638568,-155.1865506,0.0002,2]
[331544199,1720476638582,-154.69833824,0.0002,2]
[331544200,1720476638597,-1602.0324948,0.00020112,2]
[331544201,1720476638611,-1197.44206884,0.00021,2]
[331544202,1720476638626,-283.34784501,0.00021095,2]
[331544203,1720476638636,-675.0,0.00021096,2]
[331544204,1720476638750,-159.943099,0.00021096,2]
[331544205,1720476638761,-166.666666,0.00021294,2]
[331544206,1720476638775,-202.14376802,0.0002155,2]
[331544207,1720476638785,-166.666666,0.00021874,2]
[331544208,1720476638795,-420.0,0.00021999,2]
[331544209,1720476638806,-648.87210344,0.0002205,2]
[331544210,1720476638816,-161.577342,0.00022446,2]
[331544211,1720476638826,-166.666666,0.00022455,2]
[331544212,1720476638837,-500.0,0.00022539,2]
[331544213,1720476638848,-500.31877194,0.00022539,2]
[331544214,1720476638857,-500.0,0.00022539,2]
[331544215,1720476638867,-500.0,0.00022539,2]
[331544216,1720476638877,-500.0,0.00022539,2]
[331544217,1720476638887,-500.0,0.00022539,2]
[331544218,1720476638898,-500.0,0.00022539,2]
[331544219,1720476638908,-336.73309163,0.00022539,2]
[331544220,1720476638918,-157.26883324,0.00022539,2]
[331544221,1720476638927,-24900.0,0.0002254,2]
[331544222,1720476638937,-500.0,0.00022602,2]
[331544223,1720476638947,-166.666666,0.00023035,2]
[331544224,1720476638957,-621.44360517,0.00023153,2]
[331544225,1720476638967,-620.06858809,0.00023301,2]
[331544226,1720476638977,-6984.77692929,0.00023453,2]
[331544227,1720476638987,-1065.44743963,0.00023453,2]
[331544228,1720476638997,-166.666666,0.00023616,2]
[331544229,1720476639007,-2325.93897219,0.000239,2]
[331544230,1720476639018,-166.666666,0.00024196,2]
[331544231,1720476639028,-587.0,0.00024199,2]
[331544232,1720476639039,-620.07218026,0.0002431,2]
[331544233,1720476639052,-620.0034294,0.00024466,2]
[331544234,1720476639063,-1940.17760531,0.00025131,2]
[331544235,1720476639072,-2000.0,0.00025391,2]
[331544236,1720476639083,-2654.22597496,0.00025401,2]
[331544237,1720476639093,-262.98,0.00025461,3]
[331544238,1720476639104,-788.96,0.00025461,3]
[331544239,1720476639115,-216.56,0.00025471,3]
[331544240,1720476639125,-18657.0346487,0.00025471,3]
[331544241,1720476639135,-18657.0346487,0.00025481,3]
[331544242,1720476639146,-36880.70753884,0.00025491,3]
[331544243,1720476639160,-19090.39640736,0.00025491,3]
[331544244,1720476639171,-500.0,0.000255,2]
[331544245,1720476639182,-159.97871461,0.000255,2]
[331544246,1720476639192,-500.0,0.000255,2]
[331544247,1720476639203,-641.1424334,0.000255,2]
[331544248,1720476639214,-217.49645914,0.000255,2]
[331544249,1720476639224,-469.86589305,0.000255,2]
[331544250,1720476639234,-500.0,0.000255,2]
[331544251,1720476639244,-336.12492158,0.000255,2]
[331544252,1720476639255,-500.0,0.000255,2]
[331544253,1720476639266,-172.40765056,0.000255,2]
[331544254,1720476639276,-500.0,0.000255,2]
[331544255,1720476639286,-330.00616289,0.000255,2]
[331544256,1720476639296,-500.0,0.000255,2]
[331544257,1720476639306,-500.0,0.000255,2]
[331544258,1720476639315,-500.0,0.000255,2]
[331544259,1720476639325,-336.20685773,0.000255,2]
[331544260,1720476639336,-500.0,0.000255,2]
[331544261,1720476639346,-500.0,0.000255,2]
[331544262,1720476639356,-500.0,0.000255,2]
[331544263,1720476639366,-500.0,0.000255,2]
[331544264,1720476639376,-500.0,0.000255,2]
[331544265,1720476639386,-500.0,0.000255,2]
[331544266,1720476639396,-194.49495758,0.000255,2]
[331544267,1720476639407,-500.0,0.000255,2]
[331544268,1720476639416,-268.20465345,0.000255,2]
[331544269,1720476639838,-231.79534655,0.000255,2]
[331544270,1720476639850,-236.14647031,0.000255,2]
[331544271,1720476639861,-500.0,0.000255,2]
[331544272,1720476639871,-500.0,0.000255,2]
[331544273,1720476639882,-500.0,0.000255,2]
[331544274,1720476639892,-500.0,0.000255,2]
[331544275,1720476639901,-78441.19957992,0.00025501,2]
[331544276,1720476639911,-52127.6117321,0.00025501,2]
[331544277,1720476639921,-777.37650833,0.00025501,2]
[331544278,1720476639930,-153.0,0.00025507,2]
[331544279,1720476639940,-620.00360901,0.00025526,2]
[331544280,1720476639949,-150.0,0.00025565,2]
[331544281,1720476640020,-241.98105013,0.00025571,2]
[331544283,1720476640029,-151.0,0.00025679,7]
[331544285,1720476640039,-620.00017147,0.00025689,2]
[331544287,1720476640050,-18657.0346487,0.00025749,3]
[331544288,1720476640060,-37314.0692974,0.00025759,3]
[331544289,1720476640071,-151.0,0.00025769,7]
[331544290,1720476640081,-88888.0,0.00025769,3]
[331544291,1720476640091,-885.64307745,0.00025869,2]
[331544292,1720476640101,-7381.59678031,0.00025869,2]
[331544293,1720476640110,-2654.22597495,0.00025875,2]
[331544294,1720476640119,-250.0,0.00026113,2]
[331544295,1720476640128,-2654.22597495,0.00026349,2]
[331544296,1720476640137,-823.0,0.00026619,2]
[331544297,1720476640152,-350.0,0.00026661,2]
[331544298,1720476640162,-18657.0346487,0.0002678,3]
[331544299,1720476640172,-18657.0346487,0.0002679,3]
[331544300,1720476640182,-1197.52319115,0.000268,2]
[331544301,1720476640192,-1197.52319114,0.000268,2]
[331544302,1720476640201,-1197.52319114,0.000268,2]
[331544303,1720476640210,-1197.52319114,0.000268,2]
[331544304,1720476640220,-12181.83594817,0.000268,2]
[331544305,1720476640229,-12181.83594816,0.000268,2]
[331544306,1720476640238,-12181.83594816,0.000268,2]
[331544307,1720476640247,-12181.83594816,0.000268,2]
[331544308,1720476640256,-231.153362,0.000268,7]
[331544309,1720476640266,-620.00018045,0.00026802,2]
[331544310,1720476640276,-2654.22597495,0.00026823,2]
[331544311,1720476640287,-525.96,0.00026831,3]
[331544312,1720476640297,-433.12,0.00026841,3]
[331544313,1720476640306,-154.66746495,0.00026848,2]
[331544314,1720476640316,-366.0,0.00027166,2]
[331544315,1720476640325,-18657.0346487,0.00027174,3]
[331544316,1720476640335,-30000.0,0.00027184,2]
[331544317,1720476640344,-154.66746495,0.00027194,2]
[331544318,1720476640353,-675.0,0.00027195,2]
[331544319,1720476640363,-450.0,0.00027209,2]
[331544320,1720476640372,-300.0,0.00027279,2]
[331544321,1720476640382,-2654.22597495,0.00027297,2]
[331544322,1720476640391,-756.13182,0.000273,2]
[331544323,1720476640400,-18657.0346487,0.00027377,3]
[331544324,1720476640410,-5290.80510559,0.00027384,2]
[331544325,1720476640420,-428.141796,0.00027397,2]
[331544326,1720476640429,-225.66798593,0.00027397,2]
[331544327,1720476640439,-763.61573457,0.00027397,2]
[331544328,1720476640448,-189.17055998,0.00027397,2]
[331544329,1720476640457,-500.0,0.00027397,2]
[331544330,1720476640467,-500.0,0.00027397,2]
[331544331,1720476640477,-278.27514775,0.00027397,2]
[331544332,1720476640486,-500.0,0.00027397,2]
[331544333,1720476640496,-500.0,0.00027397,2]
[331544334,1720476640505,-500.0,0.00027397,2]
[331544335,1720476640515,-500.0,0.00027397,2]
[331544336,1720476640524,-500.0,0.00027397,2]
[331544337,1720476640534,-500.0,0.00027397,2]
[331544338,1720476640543,-500.0,0.00027397,2]
[331544339,1720476640552,-500.0,0.00027397,2]
[331544340,1720476640562,-500.0,0.00027397,2]
[331544341,1720476640571,-500.0,0.00027397,2]
[331544342,1720476640580,-500.0,0.00027397,2]
[331544343,1720476640590,-500.0,0.00027397,2]
[331544344,1720476640600,-500.0,0.00027397,2]
[331544345,1720476640616,-500.0,0.00027397,2]
[331544346,1720476640635,-500.0,0.00027397,2]
[331544347,1720476640654,-500.0,0.00027397,2]
[331544348,1720476640673,-450.0,0.00027397,2]
[331544349,1720476640693,-500.0,0.00027397,2]
[331544350,1720476640712,-500.0,0.00027397,2]
[331544352,1720476640731,-500.0,0.00027397,2]
[331544354,1720476640749,-500.0,0.00027397,2]
[331544356,1720476640771,-500.0,0.00027397,2]
[331544358,1720476640793,-579.2571672,0.00027397,2]
[331544360,1720476640813,-579.2571672,0.00027397,2]
[331544361,1720476640834,-579.2571672,0.00027397,2]
[331544363,1720476640856,-579.2571672,0.00027397,2]
[331544365,1720476640876,-579.2571672,0.00027397,2]
[331544367,1720476640897,-579.2571672,0.00027397,2]
[331544369,1720476640906,-579.2571672,0.00027397,2]
[331544371,1720476640916,-579.2571672,0.00027397,2]
[331544372,1720476640925,-579.2571672,0.00027397,2]
[331544374,1720476640935,-579.2571672,0.00027397,2]
[331544376,1720476640945,-579.2571672,0.00027397,2]
[331544378,1720476640954,-579.2571672,0.00027397,2]
[331544380,1720476640964,-579.2571672,0.00027397,2]
[331544382,1720476640973,-579.2571672,0.00027397,2]
[331544384,1720476640982,-579.2571672,0.00027397,2]
[331544386,1720476640991,-579.2571672,0.00027397,2]
[331544387,1720476641001,-579.2571672,0.00027397,2]
[331544389,1720476641011,-579.2571672,0.00027397,2]
[331544391,1720476641022,-579.2571672,0.00027397,2]
[331544393,1720476641031,-579.2571672,0.00027397,2]
[331544395,1720476641041,-579.2571672,0.00027397,2]
[331544397,1720476641053,-579.2571672,0.00027397,2]
[331544399,1720476641063,-579.2571672,0.00027397,2]
[331544401,1720476641072,-579.2571672,0.00027397,2]
[331544402,1720476641081,-579.2571672,0.00027397,2]
[331544403,1720476641091,-579.2571672,0.00027397,2]
[331544404,1720476641100,-579.2571672,0.00027397,2]
[331544405,1720476641110,-579.2571672,0.00027397,2]
[331544406,1720476641119,-579.2571672,0.00027397,2]
[331544407,1720476641128,-579.2571672,0.00027397,2]
[331544409,1720476641138,-579.2571672,0.00027397,2]
[331544411,1720476641147,-579.2571672,0.00027397,2]
[331544413,1720476641157,-579.2571672,0.00027397,2]
[331544415,1720476641166,-579.2571672,0.00027397,2]
[331544417,1720476641176,-579.2571672,0.00027397,2]
[331544418,1720476641185,-579.2571672,0.00027397,2]
[331544420,1720476641194,-579.2571672,0.00027397,2]
[331544422,1720476641204,-579.2571672,0.00027397,2]
[331544424,1720476641213,-579.2571672,0.00027397,2]
[331544426,1720476641224,-559.94859496,0.00027397,2]
[331544428,1720476641233,-559.94859496,0.00027397,2]
[331544430,1720476641242,-559.94859496,0.00027397,2]
[331544432,1720476641251,-559.94859496,0.00027397,2]
[331544434,1720476641260,-559.94859496,0.00027397,2]
[331544436,1720476641270,-559.94859496,0.00027397,2]
[331544438,1720476641279,-559.94859496,0.00027397,2]
[331544440,1720476641288,-559.94859496,0.00027397,2]
[331544442,1720476641297,-559.94859496,0.00027397,2]
[331544450,1720476641361,-559.94859496,0.00027397,2]
[331544452,1720476641370,-559.94859496,0.00027397,2]
[331544454,1720476641379,-559.94859496,0.00027397,2]
[331544456,1720476641389,-559.94859496,0.00027397,2]
[331544458,1720476641397,-559.94859496,0.00027397,2]
[331544460,1720476641406,-559.94859496,0.00027397,2]
[331544462,1720476641415,-559.94859496,0.00027397,2]
[331544464,1720476641424,-559.94859496,0.00027397,2]
[331544466,1720476641433,-559.94859496,0.00027397,2]
[331544468,1720476641442,-559.94859496,0.00027397,2]
[331544470,1720476641451,-559.94859496,0.00027397,2]
[331544472,1720476641460,-559.94859496,0.00027397,2]
[331544474,1720476641469,-559.94859496,0.00027397,2]
[331544476,1720476641477,-559.94859496,0.00027397,2]
[331544478,1720476641487,-615.94345445,0.00027397,2]
[331544479,1720476641495,-615.94345445,0.00027397,2]
[331544481,1720476641505,-615.94345445,0.00027397,2]
[331544483,1720476641513,-615.94345445,0.00027397,2]
[331544485,1720476641523,-615.94345444,0.00027397,2]
[331544488,1720476641533,-1500.0,0.00027397,5]
[331544490,1720476641542,-1500.0,0.00027397,5]
[331544492,1720476641551,-1500.0,0.00027397,5]
[331544494,1720476641560,-1500.0,0.00027397,5]
[331544495,1720476641569,-1500.0,0.00027397,5]
[331544497,1720476641578,-1500.0,0.00027397,5]
[331544499,1720476641587,-1069.113219,0.00027397,5]
[331544501,1720476641596,-151.0,0.00027397,7]
[331544503,1720476641605,-166.433322,0.00027397,7]
[331544505,1720476641615,-151.0,0.00027397,7]
[331544507,1720476641623,-151.0,0.00027397,7]
[331544508,1720476641633,-151.0,0.00027397,7]
[331544510,1720476641642,-151.0,0.00027397,7]
[331544512,1720476641651,-151.0,0.00027397,7]
[331544514,1720476641659,-151.0,0.00027397,7]
[331544516,1720476641668,-151.0,0.00027397,7]
[331544518,1720476641677,-158.098734,0.00027397,7]
[331544520,1720476641686,-352.456612,0.00027397,7]
[331544522,1720476641695,-352.456612,0.00027397,7]
[331544524,1720476641704,-352.456612,0.00027397,7]
[331544525,1720476641712,-352.456612,0.00027397,7]
[331544527,1720476641721,-352.456612,0.00027397,7]
[331544529,1720476641731,-352.456612,0.00027397,7]
[331544531,1720476641741,-352.456612,0.00027397,7]
[331544533,1720476641750,-352.456612,0.00027397,7]
[331544534,1720476641759,-352.456612,0.00027397,7]
[331544536,1720476641773,-352.456612,0.00027397,7]
[331544538,1720476641782,-352.456612,0.00027397,7]
[331544540,1720476641791,-352.456612,0.00027397,7]
[331544542,1720476641800,-151.0,0.00027397,7]
[331544543,1720476641810,-151.0,0.00027397,7]
[331544545,1720476641820,-264.661648,0.00027397,7]
[331544547,1720476641829,-268.723027,0.00027397,7]
[331544550,1720476641839,-268.723027,0.00027397,7]
[331544552,1720476641850,-268.723027,0.00027397,7]
[331544554,1720476641859,-268.723027,0.00027397,7]
[331544555,1720476641869,-268.723027,0.00027397,7]
[331544557,1720476641878,-268.723027,0.00027397,7]
[331544560,1720476641887,-268.723027,0.00027397,7]
[331544562,1720476641897,-268.723027,0.00027397,7]
[331544564,1720476641906,-268.723027,0.00027397,7]
[331544566,1720476641916,-268.723027,0.00027397,7]
[331544568,1720476641925,-151.0,0.00027397,7]
[331544570,1720476641934,-157.03548,0.00027397,7]
[331544571,1720476641943,-151.0,0.00027397,7]
[331544573,1720476641952,-151.0,0.00027397,7]
[331544575,1720476641961,-152.606446,0.00027397,7]
[331544576,1720476641970,-596.662573,0.00027397,2]
[331544577,1720476641979,-596.662573,0.00027397,2]
[331544578,1720476641989,-596.662573,0.00027397,2]
[331544579,1720476641998,-596.662573,0.00027397,2]
[331544580,1720476642007,-596.662573,0.00027397,2]
[331544581,1720476642016,-596.662573,0.00027397,2]
[331544582,1720476642025,-596.662573,0.00027397,2]
[331544583,1720476642034,-596.662573,0.00027397,2]
[331544584,1720476642043,-596.662573,0.00027397,2]
[331544585,1720476642053,-596.662573,0.00027397,2]
[331544586,1720476642062,-596.662573,0.00027397,2]
[331544587,1720476642071,-596.662573,0.00027397,2]
[331544588,1720476642080,-156.744755,0.00027397,7]
[331544589,1720476642090,-156.744755,0.00027397,7]
[331544590,1720476642099,-156.744755,0.00027397,7]
[331544591,1720476642108,-156.744755,0.00027397,7]
[331544592,1720476642117,-156.744755,0.00027397,7]
[331544593,1720476642126,-156.744755,0.00027397,7]
[331544594,1720476642135,-156.744755,0.00027397,7]
[331544595,1720476642143,-156.744755,0.00027397,7]
[331544596,1720476642152,-156.744755,0.00027397,7]
[331544597,1720476642161,-156.744755,0.00027397,7]
[331544598,1720476642170,-151.632729,0.00027397,7]
[331544599,1720476642179,-151.0,0.00027397,7]
[331544600,1720476642187,-151.0,0.00027397,7]
[331544601,1720476642196,-151.0,0.00027397,7]
[331544602,1720476642205,-151.0,0.00027397,7]
[331544603,1720476642214,-151.0,0.00027397,7]
[331544604,1720476642223,-151.0,0.00027397,7]
[331544605,1720476642232,-151.0,0.00027397,7]
[331544606,1720476642241,-151.0,0.00027397,7]
[331544607,1720476642250,-151.0,0.00027397,7]
[331544608,1720476642259,-151.0,0.00027397,7]
[331544609,1720476642268,-151.0,0.00027397,7]
[331544610,1720476642277,-151.0,0.00027397,7]
[331544611,1720476642286,-205.413105,0.00027397,7]
[331544612,1720476642295,-151.0,0.00027397,7]
[331544613,1720476642303,-227.405288,0.00027397,7]
[331544614,1720476642313,-151.0,0.00027397,7]
[331544615,1720476642322,-151.0,0.00027397,7]
[331544616,1720476642331,-151.0,0.00027397,7]
[331544617,1720476642341,-151.0,0.00027397,7]
[331544618,1720476642350,-151.0,0.00027397,7]
[331544619,1720476642410,-151.0,0.00027397,7]
[331544620,1720476642419,-151.0,0.00027397,7]
[331544621,1720476642428,-151.0,0.00027397,7]
[331544622,1720476642438,-279.398626,0.00027397,7]
[331544623,1720476642447,-151.0,0.00027397,7]
[331544624,1720476642456,-151.0,0.00027397,7]
[331544625,1720476642466,-151.0,0.00027397,7]
[331544626,1720476642475,-151.0,0.00027397,7]
[331544627,1720476642484,-151.0,0.00027397,7]
[331544628,1720476642494,-566.82686133,0.00027399,2]
[331544629,1720476642503,-188.6921942,0.00027399,2]
[331544630,1720476642512,-176.26175687,0.000274,2]
[331544631,1720476642523,-550.0,0.00027757,2]
[331544632,1720476642532,-151.0,0.00027999,7]
[331544633,1720476642541,-208.71612873,0.00027999,2]
[331544634,1720476642550,-182.6876855,0.00027999,2]
[331544635,1720476642559,-268.51955256,0.00028,2]
[331544636,1720476642569,-650.0,0.00028305,2]
[331544637,1720476642578,-750.0,0.00028853,2]
[331544638,1720476642587,-2325.93897219,0.000289,2]
[331544639,1720476642596,-700.0,0.00029281,2]
[331544640,1720476642605,-850.0,0.00029401,2]
[331544641,1720476642614,-403.49755909,0.00029772,2]
[331544642,1720476642623,-154.66746495,0.00029772,2]
[331544643,1720476642632,-525.39824529,0.00029793,2]
[331544644,1720476642641,-156.80969809,0.00029793,2]
[331544645,1720476642651,-209.22009832,0.00029793,2]
[331544646,1720476642660,-525.39824529,0.00029793,2]
[331544647,1720476642669,-908.81436662,0.00029793,2]
[331544648,1720476642678,-158.89526759,0.00029793,2]
[331544649,1720476642687,-247.414595,0.000298,120]
[331544650,1720476642696,-725.25724813,0.00029803,2]
[331544651,1720476642705,-598.9386122,0.00029803,2]
[331544652,1720476642714,-270.83628217,0.00029803,2]
[331544653,1720476642723,-272.31604282,0.00029803,2]
[331544654,1720476642732,-164.70099388,0.00029803,2]
[331544655,1720476642741,-268.723027,0.00029813,7]
[331544656,1720476642750,-268.723027,0.00029813,7]
[331544657,1720476642760,-195.84578996,0.00029813,2]
[331544658,1720476642776,-154.66746495,0.00029813,2]
[331544659,1720476642785,-155.28019275,0.00029813,2]
[331544660,1720476642795,-412.552406,0.00029813,2]
[331544661,1720476642804,-318.7185046,0.00029813,2]
[331544662,1720476642815,-844.3449217,0.00029813,2]
[331544663,1720476642824,-154.66746495,0.00029813,2]
[331544664,1720476642833,-221.51902791,0.00029813,2]
[331544665,1720476642846,-517.95798535,0.00029813,2]
[331544666,1720476642855,-155.02908324,0.00029813,2]
[331544667,1720476642866,-155.55731267,0.00029813,2]
[331544668,1720476642876,-523.68456754,0.00029823,2]
[331544669,1720476642886,-532.24050528,0.00029823,2]
[331544670,1720476642896,-203.23522038,0.00029823,2]
[331544671,1720476642907,-179.90875741,0.00029823,2]
[331544672,1720476642924,-179.90875741,0.00029823,2]
[331544673,1720476642934,-220.46741534,0.00029823,2]
[331544674,1720476642946,-155.14377165,0.00029823,2]
[331544675,1720476642960,-238.52636184,0.00029823,2]
[331544676,1720476642970,-174.6635656,0.00029823,2]
[331544677,1720476642980,-155.46546424,0.00029823,2]
[331544678,1720476642991,-154.66746495,0.00029823,2]
[331544679,1720476643001,-303.56968343,0.00029823,2]
[331544680,1720476643012,-154.66746495,0.00029823,2]
[331544681,1720476643022,-151.0,0.00029823,7]
[331544683,1720476643032,-156.744755,0.00029861,7]
[331544685,1720476643042,-156.744755,0.00029861,7]
[331544687,1720476643052,-151.0,0.00029861,7]
[331544690,1720476643063,-154.66746495,0.00029861,2]
[331544692,1720476643073,-203.18290702,0.00029861,2]
[331544695,1720476643084,-154.66746495,0.00029861,2]
[331544698,1720476643094,-519.36691665,0.00029861,2]
[331544701,1720476643103,-151.0,0.00029861,7]
[331544703,1720476643113,-151.0,0.00029861,7]
[331544705,1720476643123,-160.03609292,0.0002987,2]
[331544707,1720476643132,-458.54129141,0.0002987,2]
[331544709,1720476643141,-154.66746495,0.00029879,2]
[331544712,1720476643150,-157.2682199,0.00029879,2]
[331544715,1720476643159,-402.47381774,0.00029879,2]
[331544718,1720476643168,-1102.99874107,0.000299,2]
[331544721,1720476643177,-193.50509403,0.00029901,2]
[331544724,1720476643186,-205.3687641,0.00029901,2]
[331544727,1720476643195,-934.8017749,0.00029901,2]
[331544729,1720476643204,-196.57991598,0.00029901,2]
[331544732,1720476643213,-154.66746495,0.00029903,2]
[331544734,1720476643221,-155.30166176,0.00029903,2]
[331544737,1720476643230,-154.66746495,0.00029903,2]
[331544740,1720476643238,-185.63163894,0.00029904,2]
[331544741,1720476643247,-286.90128516,0.00029904,2]
[331544743,1720476643256,-374.75657396,0.00029904,2]
[331544746,1720476643264,-154.66746495,0.00029904,2]
[331544749,1720476643274,-412.72535761,0.00029904,2]
[331544752,1720476643283,-352.456612,0.00029904,7]
[331544754,1720476643292,-352.456612,0.00029904,7]
[331544756,1720476643301,-1000.0,0.00029949,2]
[331544759,1720476643310,-194.6202431,0.00029979,2]
[331544762,1720476643319,-192.27216457,0.00029979,2]
[331544765,1720476643328,-276.57925528,0.00029999,2]
[331544767,1720476643336,-170.41373926,0.0003,4]
[331544769,1720476643346,-400.35358291,0.0003,2]
[331544771,1720476643355,-196.66202373,0.0003,4]
[331544778,1720476643408,-1158.1610827,0.0003,2]
[331544779,1720476643428,-212.0,0.0003,2]
[331544780,1720476643437,-159.943099,0.00030011,2]
[331544781,1720476643446,-1405.0,0.00031302,2]
[331544782,1720476643455,-1859.49713008,0.000325,2]
[331544783,1720476643465,-284.48602988,0.00032793,3]
[331544784,1720476643474,-1736.827804,0.00032877,7]
[331544785,1720476643483,-1736.827804,0.00032877,7]
[331544786,1720476643492,-1736.827804,0.00032877,7]
[331544787,1720476643501,-1736.827804,0.00032877,7]
[331544788,1720476643510,-1736.827804,0.00032877,7]
[331544789,1720476643521,-1736.827804,0.00032877,7]
[331544790,1720476643530,-1736.827804,0.00032877,7]
[331544791,1720476643539,-1736.827804,0.00032877,7]
[331544792,1720476643548,-1736.827804,0.00032877,7]
[331544793,1720476643561,-1736.827804,0.00032877,7]
[331544794,1720476643570,-1736.827804,0.00032877,7]
[331544795,1720476643579,-1736.827804,0.00032877,7]
[331544796,1720476643588,-150.0,0.00032877,2]
[331544797,1720476643597,-268.723027,0.00032877,7]
[331544798,1720476643606,-268.723027,0.00032877,7]
[331544799,1720476643614,-596.662573,0.00032877,2]
[331544800,1720476643623,-596.662573,0.00032877,2]
[331544801,1720476643632,-306.0,0.00032986,2]
[331544802,1720476643641,-212.0,0.00033,2]
[331544803,1720476643650,-212.0,0.00033,2]
[331544804,1720476643659,-6862.14140497,0.00033208,7]
[331544805,1720476643668,-509.8833108,0.00033208,4]
[331544806,1720476643677,-257.2226313,0.00033208,4]
[331544807,1720476643686,-156.744755,0.00033208,7]
[331544808,1720476643695,-156.744755,0.00033208,7]
[331544809,1720476643704,-1736.827804,0.00033208,7]
[331544810,1720476643713,-1736.827804,0.00033208,7]
[331544811,1720476643722,-306.1474964,0.0003326,2]
[331544812,1720476643731,-675.0,0.00033295,2]
[331544813,1720476643740,-151.0,0.00033323,7]
[331544814,1720476643750,-352.456612,0.00033333,7]
[331544815,1720476643759,-352.456612,0.00033333,7]
[331544816,1720476643775,-352.456612,0.00033333,7]
[331544817,1720476643784,-352.456612,0.00033333,7]
[331544818,1720476643795,-268.723027,0.00033333,7]
[331544819,1720476643805,-268.723027,0.00033333,7]
[331544820,1720476643814,-596.662573,0.00033333,2]
[331544821,1720476643823,-596.662573,0.00033333,2]
[331544822,1720476643832,-596.662573,0.00033333,2]
[331544823,1720476643844,-596.662573,0.00033333,2]